bitfinex/quotes_ETHUSD_20230902
["timestamp","ask_amount","ask_price","bid_price","bid_amount"]
[1693619345231,3.2799544,1629.7,1629.2,12.40425404]
[1693619345444,3.2799544,1629.7,1629.6,1.573]
[1693619345651,5.94505995,1629.7,1629.6,4.573]
[1693619345851,4.9808253,1629.7,1629.6,4.573]
[1693619346187,4.98699435,1629.7,1629.6,4.573]
[1693619349374,3.38793102,1629.7,1629.6,4.573]
[1693619350877,1.67921134,1629.7,1629.6,4.573]
[1693619352781,2.2791716,1629.7,1629.6,4.573]
[1693619358784,2.2791716,1629.7,1629.6,5.06177156]
[1693619368671,0.60612931,1629.7,1629.6,8.1436256]
[1693619368865,0.60612931,1629.7,1629.6,8.6236256]
[1693619373790,0.00616905,1629.7,1629.6,8.6236256]
[1693619373991,5.1256544,1629.9,1629.6,8.6236256]
[1693619374192,5.1256544,1629.9,1629.7,0.48]
[1693619374623,0.57004987,1629.8,1629.7,0.48]
[1693619374816,5.1256544,1629.9,1629.7,0.48]
[1693619375118,0.0057118,1629.8,1629.7,0.48]
[1693619375320,0.57576167,1629.8,1629.7,3.56185404]
[1693619375501,0.57576167,1629.8,1629.7,6.56185404]
[1693619380219,0.57576167,1629.8,1629.7,3.48]
[1693619380421,4.45358919,1629.8,1629.7,3.0]
[1693619380627,5.41782384,1629.8,1629.6,0.48877156]
[1693619380795,2.75281539,1629.8,1629.5,4.573]
[1693619380997,1.67304229,1629.7,1629.6,0.48]
[1693619381407,1.67304229,1629.7,1629.5,7.65485404]
[1693619381408,5.62084275,1629.7,1629.5,3.0]
[1693619381594,1.67304229,1629.5,1629.3,4.573]
[1693619381812,1.67304229,1629.5,1629.3,3.0]
[1693619382003,0.00568045,1629.4,1629.2,4.573]
[1693619382198,0.00568045,1629.4,1629.2,7.65485404]
[1693619385529,0.00568045,1629.4,1629.2,4.573]
[1693619385830,0.00568045,1629.4,1629.2,1.573]
[1693619389924,0.56762421,1629.3,1629.2,1.573]
[1693619390231,0.00568045,1629.4,1629.2,1.573]
[1693619390941,1.67304229,1629.3,1629.1,5.0762719]
[1693619391316,1.67304229,1629.3,1629.1,0.5032719]
[1693619391542,1.67304229,1629.3,1629.0,1.573]
[1693619391714,1.67304229,1629.3,1629.0,4.65485404]
[1693619391906,1.67304229,1629.3,1629.0,5.14096642]
[1693619392111,0.00563811,1629.2,1629.1,3.0]
[1693619393146,0.56453331,1629.2,1629.1,3.0]
[1693619393643,1.67304229,1629.3,1629.1,3.0]
[1693619393810,2.31581444,1629.3,1629.0,0.48611238]
[1693619394016,0.00563811,1629.2,1628.9,4.63984034]
[1693619394218,0.57007575,1629.2,1628.9,4.63984034]
[1693619394526,1.67304229,1629.1,1628.9,4.63984034]
[1693619395131,0.00561873,1629.0,1628.9,4.63984034]
[1693619395538,0.00561873,1629.0,1628.9,5.12757691]
[1693619401142,1.67304229,1629.1,1628.9,5.12757691]
[1693619401465,1.67304229,1629.1,1629.0,1.573]
[1693619401639,1.67304229,1629.1,1629.0,4.573]
[1693619402017,1.67866886,1629.1,1629.0,4.573]
[1693619403348,1.67866886,1629.1,1629.0,1.573]
[1693619404752,2.24168474,1629.1,1629.0,1.573]
[1693619406568,2.23908474,1629.1,1629.0,1.573]
[1693619406860,0.56864245,1629.1,1629.0,6.22785404]
[1693619407030,0.56864245,1629.1,1629.0,9.70785404]
[1693619407217,0.00562657,1629.1,1629.0,9.70785404]
[1693619407421,0.00562657,1629.1,1629.0,12.02215404]
[1693619408170,1.67044229,1629.4,1629.0,12.02215404]
[1693619408320,1.67044229,1629.4,1629.3,1.573]
[1693619408931,1.67044229,1629.4,1629.3,4.573]
[1693619409132,1.67609239,1629.4,1629.3,4.573]
[1693619412224,1.67609239,1629.4,1629.3,4.523]
[1693619412777,1.67609239,1629.4,1629.3,7.60485404]
[1693619412926,1.67609239,1629.4,1629.3,8.08485404]
[1693619414145,0.0056501,1629.4,1629.3,8.08485404]
[1693619415692,1.67609239,1629.4,1629.3,8.08485404]
[1693619416382,0.0056501,1629.4,1629.3,8.08485404]
[1693619417180,0.64736913,1629.4,1629.3,8.08485404]
[1693619417339,0.0056501,1629.4,1629.3,8.08485404]
[1693619418778,1.71356399,1629.4,1629.3,8.08485404]
[1693619419735,2.27680877,1629.4,1629.3,8.08485404]
[1693619422697,3.87609681,1629.4,1629.3,8.08485404]
[1693619422837,2.27680877,1629.4,1629.3,8.08485404]
[1693619423680,3.87609463,1629.4,1629.3,8.08485404]
[1693619424351,2.27680877,1629.4,1629.3,8.08485404]
[1693619429265,0.56889488,1629.4,1629.3,8.08485404]
[1693619433615,0.56625488,1629.4,1629.3,8.08485404]
[1693619434120,0.57019575,1629.4,1629.3,8.08485404]
[1693619442049,0.57019575,1629.4,1629.3,11.41441175]
[1693619442481,0.00695097,1629.4,1629.3,11.41441175]
[1693619443202,4.19591944,1629.8,1629.3,11.41441175]
[1693619443420,4.19591944,1629.8,1629.4,5.84225404]
[1693619443616,0.63720137,1629.7,1629.5,3.0]
[1693619443920,0.63720137,1629.7,1629.6,3.56185404]
[1693619444119,0.63720137,1629.7,1629.6,6.56185404]
[1693619446115,0.64346521,1629.7,1629.6,6.56185404]
[1693619450088,0.64346521,1629.7,1629.6,8.13485404]
[1693619451817,2.35166284,1629.7,1629.6,8.13485404]
[1693619452485,1.70947567,1629.7,1629.6,8.13485404]
[1693619452681,2.35165282,1629.7,1629.6,8.13485404]
[1693619454388,0.64346521,1629.7,1629.6,8.13485404]
[1693619457172,0.64217715,1629.9,1629.6,8.62335903]
[1693619457348,3.30696533,1629.9,1629.7,3.0]
[1693619457529,0.64217715,1629.9,1629.8,3.56185404]
[1693619457730,3.30697825,1629.9,1629.8,6.56185404]
[1693619458149,3.31278712,1629.9,1629.8,6.56185404]
[1693619459455,3.31278712,1629.9,1629.8,8.13485404]
[1693619462769,1.71390646,1629.9,1629.8,8.13485404]
[1693619463142,0.00580887,1629.9,1629.8,8.13485404]
[1693619463748,0.00580887,1629.9,1629.8,10.39055404]
[1693619463948,0.5926681,1629.9,1629.8,10.39055404]
[1693619464191,0.58685923,1629.9,1629.8,10.39055404]
[1693619464679,0.64217715,1630.1,1629.8,10.39055404]
[1693619464876,0.64217715,1630.1,1629.9,3.0]
[1693619465076,0.64217715,1630.1,1630.0,3.56185404]
[1693619465077,3.66649476,1630.1,1630.0,3.56185404]
[1693619465280,3.30672092,1630.1,1630.0,6.56185404]
[1693619468101,3.31254177,1630.1,1630.0,6.56185404]
[1693619471852,3.31254177,1630.1,1630.0,8.13485404]
[1693619473452,4.2758075,1630.1,1630.0,8.13485404]
[1693619473959,3.31254177,1630.1,1630.0,8.13485404]
[1693619474669,4.2758075,1630.1,1630.0,8.13485404]
[1693619475308,1.71381561,1630.1,1630.0,8.13485404]
[1693619475664,3.31242243,1630.1,1630.0,8.13485404]
[1693619479458,4.27568816,1630.1,1630.0,8.13485404]
[1693619479705,4.27568816,1630.1,1630.0,8.63322772]
[1693619480004,4.86304335,1630.1,1630.0,8.63322772]
[1693619480856,3.89977762,1630.1,1630.0,8.63322772]
[1693619481203,4.86304335,1630.1,1630.0,8.63322772]
[1693619482595,4.2208662,1630.1,1630.0,8.63322772]
[1693619483624,2.62118559,1630.1,1630.0,8.63322772]
[1693619483917,4.21983025,1630.1,1630.0,8.63322772]
[1693619485609,4.21983025,1630.1,1630.0,10.20622772]
[1693619489678,4.16983025,1630.1,1630.0,10.20622772]
[1693619490093,4.17543242,1630.1,1630.0,10.20622772]
[1693619499857,4.81797619,1630.1,1630.0,10.20622772]
[1693619500754,4.17543242,1630.1,1630.0,10.20622772]
[1693619500960,4.81821025,1630.1,1630.0,10.20622772]
[1693619501753,3.8559638,1630.1,1630.0,10.20622772]
[1693619502052,4.81821025,1630.1,1630.0,10.20622772]
[1693619505674,4.81821025,1630.1,1630.0,8.63322772]
[1693619508571,4.17543242,1630.1,1630.0,8.63322772]
[1693619509179,4.8190156,1630.1,1630.0,8.63322772]
[1693619509673,4.17543242,1630.1,1630.0,8.63322772]
[1693619511073,4.17863089,1630.1,1630.0,8.63322772]
[1693619527504,6.63213416,1630.1,1630.0,3.0]
[1693619527686,1.67044229,1630.0,1629.8,3.49309855]
[1693619528000,0.96564462,1629.9,1629.8,0.49309855]
[1693619528186,4.27916514,1629.9,1629.7,1.573]
[1693619528494,2.17644659,1629.9,1629.7,4.65485404]
[1693619528991,2.17644659,1629.9,1629.8,3.0]
[1693619529197,4.71119325,1629.9,1629.8,3.0]
[1693619529558,5.35452886,1629.9,1629.8,3.0]
[1693619529771,4.84108736,1629.9,1629.8,3.0]
[1693619531067,3.87544274,1629.9,1629.8,3.0]
[1693619534903,2.27655949,1629.9,1629.8,3.0]
[1693619535112,0.56730171,1629.9,1629.8,8.13485404]
[1693619544125,0.56171521,1629.9,1629.8,8.13485404]
[1693619546109,0.56729651,1629.9,1629.8,8.13485404]
[1693619604163,0.56171521,1629.9,1629.8,8.13485404]
[1693619604463,1.8921,1630.1,1629.9,2.0]
[1693619604686,1.8921,1630.1,1630.0,3.56185404]
[1693619604874,2.31369887,1630.2,1630.0,6.56185404]
[1693619605075,0.00559952,1630.1,1630.0,6.56185404]
[1693619608064,4.11739887,1630.2,1630.0,6.56185404]
[1693619608279,3.47414229,1630.2,1630.1,3.0]
[1693619608477,1.67044229,1630.2,1630.1,6.56185404]
[1693619609199,1.67604965,1630.2,1630.1,6.56185404]
[1693619612095,1.67604965,1630.2,1630.1,8.13485404]
[1693619614721,2.18120555,1630.2,1630.1,8.13485404]
[1693619626246,2.18120555,1630.2,1630.1,8.03485404]
[1693619631639,1.67604965,1630.2,1630.1,8.03485404]
[1693619631940,2.18120555,1630.2,1630.1,8.03485404]
[1693619635256,3.88989307,1630.2,1630.1,8.03485404]
[1693619640866,3.89022092,1630.2,1630.1,8.03485404]
[1693619642268,5.48871981,1630.2,1630.1,8.03485404]
[1693619647186,6.45374403,1630.2,1630.1,8.03485404]
[1693619652986,7.41877833,1630.2,1630.1,8.03485404]
[1693619656516,6.45374403,1630.2,1630.1,8.03485404]
[1693619665734,6.45374403,1630.2,1630.1,4.953]
[1693619665934,8.26353268,1630.2,1630.1,2.9]
[1693619666239,8.26353268,1630.2,1630.0,0.48300367]
[1693619666398,5.09958105,1630.1,1629.9,1.573]
[1693619666729,3.37983721,1630.0,1629.8,1.573]
[1693619666929,5.94400127,1630.0,1629.7,2.05676204]
[1693619667145,0.00558385,1629.9,1629.7,4.65485404]
[1693619668043,0.00558385,1629.9,1629.8,3.0]
[1693619672205,0.00558385,1629.9,1629.7,1.573]
[1693619674053,1.67044229,1629.7,1629.6,3.48236196]
[1693619674253,1.67044229,1629.7,1629.6,4.044216]
[1693619674559,1.66168229,1629.7,1629.6,7.044216]
[1693619674865,2.14825473,1629.7,1629.6,7.044216]
[1693619675228,2.15382291,1629.7,1629.6,7.044216]
[1693619675529,2.15169291,1629.7,1629.6,7.044216]
[1693619680361,2.5543722,1629.7,1629.6,3.96236196]
[1693619680561,2.5543722,1629.7,1629.6,3.48236196]
[1693619680767,2.5543722,1629.7,1629.6,0.48236196]
[1693619681079,2.5543722,1629.7,1629.5,4.573]
[1693619681373,2.5543722,1629.7,1629.5,7.65485404]
[1693619683190,2.5543722,1629.7,1629.5,4.573]
[1693619683362,2.5543722,1629.7,1629.5,5.05633783]
[1693619683563,2.5543722,1629.7,1629.6,3.0]
[1693619683762,2.5543722,1629.7,1629.5,2.05633783]
[1693619692042,2.5543722,1629.7,1629.5,0.48333783]
[1693619692239,2.5543722,1629.7,1629.4,1.573]
[1693619692422,4.4188722,1629.7,1629.4,1.573]
[1693619700390,5.06023432,1629.7,1629.4,1.573]
[1693619700891,5.06023432,1629.7,1629.5,1.573]
[1693619703747,6.0222775,1629.7,1629.5,1.573]
[1693619704492,2.30963028,1629.6,1629.4,1.573]
[1693619704660,1.64203229,1629.5,1629.4,1.573]
[1693619705274,1.64758479,1629.5,1629.4,1.573]
[1693619713699,2.71363232,1629.5,1629.4,1.573]
[1693619714193,3.35499344,1629.5,1629.4,1.573]
[1693619714390,1.64758479,1629.5,1629.4,1.573]
[1693619719937,2.14911418,1629.5,1629.4,1.573]
[1693619735026,2.27930714,1629.5,1629.4,1.573]
[1693619745736,2.81779684,1629.5,1629.4,1.573]
[1693619746771,2.27930714,1629.5,1629.4,1.573]
[1693619749869,5.58605216,1629.5,1629.3,5.06110195]
[1693619750069,3.88271244,1629.5,1629.3,5.06110195]
[1693619750873,2.92066926,1629.5,1629.3,5.06110195]
[1693619759078,3.30691859,1629.4,1629.3,3.0]
[1693619759373,4.58872258,1629.4,1629.3,3.0]
[1693619759576,2.9893887,1629.4,1629.2,1.573]
[1693619759883,1.29618901,1629.4,1629.2,1.573]
[1693619760176,2.27550086,1629.3,1629.2,1.573]
[1693619760557,1.64856901,1629.3,1629.2,1.573]
[1693619761166,1.64203229,1629.3,1629.2,1.573]
[1693619761849,2.26894794,1629.3,1629.2,1.573]
[1693619762243,2.27548466,1629.3,1629.2,1.573]
[1693619762663,2.76300934,1629.3,1629.2,1.573]
[1693619765384,2.27548466,1629.3,1629.2,1.573]
[1693619767987,0.63345237,1629.3,1629.2,5.13485404]
[1693619768152,0.00653672,1629.3,1629.2,8.13485404]
[1693619768696,0.00653672,1629.3,1629.2,10.43775404]
[1693619769220,1.64203229,1629.5,1629.2,10.43775404]
[1693619769391,1.64203229,1629.5,1629.4,1.573]
[1693619770296,1.64833268,1629.5,1629.4,1.573]
[1693619776253,3.35583499,1629.5,1629.4,1.573]
[1693619779507,2.71446896,1629.5,1629.4,1.573]
[1693619779835,2.25567634,1629.5,1629.4,1.573]
[1693619783245,2.25567634,1629.5,1629.4,2.05236928]
[1693619786552,2.25105634,1629.5,1629.4,2.05236928]
[1693619786934,2.25105634,1629.5,1629.4,2.00236928]
[1693619787755,3.95854152,1629.5,1629.4,2.00236928]
[1693619789520,2.25105634,1629.5,1629.4,2.00236928]
[1693619792014,2.25105634,1629.5,1629.4,5.56422332]
[1693619792214,2.25105634,1629.5,1629.4,8.56422332]
[1693619794754,4.34398588,1629.5,1629.4,5.00236928]
[1693619795682,4.34398588,1629.5,1629.4,2.00236928]
[1693619808014,5.94317709,1629.5,1629.4,2.00236928]
[1693619808512,5.9432208,1629.5,1629.4,2.00236928]
[1693619808682,6.90526398,1629.5,1629.4,2.00236928]
[1693619809008,5.9432208,1629.5,1629.4,2.00236928]
[1693619809671,6.90526398,1629.5,1629.4,2.00236928]
[1693619813622,6.90744212,1629.5,1629.4,2.00236928]
[1693619813824,6.26390186,1629.5,1629.4,2.00236928]
[1693619814011,5.8784557,1629.5,1629.4,2.00236928]
[1693619814210,6.52199584,1629.5,1629.4,2.00236928]
[1693619814416,6.52199578,1629.5,1629.4,2.00236928]
[1693619816635,6.52197028,1629.5,1629.4,2.00236928]
[1693619819098,5.8784557,1629.5,1629.4,2.00236928]
[1693619819651,5.8784557,1629.5,1629.4,1.523]
[1693619822049,6.52197187,1629.5,1629.4,1.523]
[1693619822350,6.52197187,1629.5,1629.4,4.60485404]
[1693619822351,2.25105634,1629.5,1629.4,4.60485404]
[1693619822552,0.61364405,1629.5,1629.4,8.08485404]
[1693619834165,0.00630039,1629.5,1629.4,8.08485404]
[1693619834350,1.63741229,1629.7,1629.5,1.573]
[1693619834555,1.63741229,1629.7,1629.6,5.13485404]
[1693619834759,1.63741229,1629.7,1629.6,8.13485404]
[1693619835255,1.64324838,1629.7,1629.6,8.13485404]
[1693619839780,2.20604596,1629.7,1629.6,8.13485404]
[1693619849813,2.20604596,1629.7,1629.6,8.63389335]
[1693619854727,2.20604596,1629.7,1629.6,4.573]
[1693619854924,1.63741229,1629.5,1629.3,0.48286871]
[1693619855226,1.63741229,1629.5,1629.4,1.573]
[1693619856425,1.6432327,1629.5,1629.4,4.573]
[1693619861134,1.6432327,1629.5,1629.4,3.0]
[1693619869856,2.19622968,1629.5,1629.4,3.0]
[1693619881249,2.19622968,1629.5,1629.4,4.573]
[1693619893877,3.9059233,1629.5,1629.4,4.573]
[1693619895592,5.50519879,1629.5,1629.4,4.573]
[1693619899477,6.46724197,1629.5,1629.4,4.573]
[1693619899782,5.50439803,1629.5,1629.4,4.573]
[1693619900589,5.82577709,1629.5,1629.4,4.573]
[1693619920918,5.82637916,1629.5,1629.4,4.573]
[1693619935925,4.18896687,1629.5,1629.4,8.13485404]
[1693619936124,0.55881739,1629.5,1629.4,8.74863152]
[1693619937926,2.19622968,1629.5,1629.4,8.74863152]
[1693619938254,0.55881739,1629.5,1629.4,8.74863152]
[1693619938649,2.19622968,1629.5,1629.4,8.74863152]
[1693619939558,0.55881739,1629.5,1629.4,8.74863152]
[1693619952359,0.55881739,1629.5,1629.4,8.93149276]
[1693620004986,0.55881739,1629.5,1629.4,5.18677748]
[1693620005185,0.55881739,1629.5,1629.4,4.573]
[1693620005387,2.19622968,1629.5,1629.4,1.573]
[1693620005553,3.90549342,1629.5,1629.4,4.573]
[1693620005758,5.99168597,1629.5,1629.4,4.573]
[1693620005950,4.39251572,1629.5,1629.4,4.573]
[1693620006854,4.39251572,1629.5,1629.4,1.573]
[1693620007691,2.68325198,1629.5,1629.4,1.573]
[1693620009203,3.74936905,1629.5,1629.4,1.573]
[1693620009354,4.39254827,1629.5,1629.4,1.573]
[1693620009791,2.68325198,1629.5,1629.4,1.573]
[1693620013791,0.55881739,1629.5,1629.4,5.26863152]
[1693620013989,0.55881739,1629.5,1629.4,8.74863152]
[1693620016007,3.24532106,1629.9,1629.5,1.573]
[1693620016177,1.63741229,1629.9,1629.8,1.573]
[1693620016388,0.64317922,1630.0,1629.8,6.65485404]
[1693620016569,1.70898546,1630.0,1629.9,3.56185404]
[1693620016770,3.24532106,1630.1,1629.9,3.56185404]
[1693620016967,3.24532106,1630.1,1630.0,3.0]
[1693620017320,5.90983181,1630.1,1630.0,6.08185404]
[1693620017671,4.94510226,1630.1,1630.0,6.08185404]
[1693620019918,3.34639581,1630.1,1630.0,6.08185404]
[1693620021726,1.63741229,1630.1,1630.0,6.08185404]
[1693620023695,2.15772562,1630.1,1630.0,6.08185404]
[1693620031236,3.8667009,1630.1,1630.0,4.573]
[1693620031536,5.94859482,1630.1,1630.0,4.573]
[1693620031930,5.94859482,1630.1,1630.0,1.573]
[1693620032138,5.43326679,1630.1,1630.0,4.573]
[1693620032304,5.43326679,1630.1,1630.0,1.573]
[1693620033517,5.42828149,1630.1,1630.0,1.573]
[1693620034345,6.39301104,1630.1,1630.0,1.573]
[1693620036145,6.90853919,1630.1,1630.0,1.573]
[1693620036443,6.91352449,1630.1,1630.0,1.573]
[1693620040548,6.27034527,1630.1,1630.0,1.573]
[1693620041246,6.91184542,1630.1,1630.0,1.573]
[1693620042222,6.27034527,1630.1,1630.0,1.573]
[1693620046427,6.27034527,1630.1,1629.8,5.06311556]
[1693620046629,1.63741229,1629.9,1629.8,1.573]
[1693620047660,1.64238064,1629.9,1629.8,1.573]
[1693620048563,1.63741229,1629.9,1629.8,1.573]
[1693620049463,1.64238064,1629.9,1629.8,1.573]
[1693620050267,2.15733964,1629.9,1629.8,1.573]
[1693620052670,3.22326058,1629.9,1629.8,1.573]
[1693620052870,3.8646126,1629.9,1629.8,1.573]
[1693620054873,5.46351062,1629.9,1629.8,1.573]
[1693620056574,6.42637489,1629.9,1629.8,1.573]
[1693620056777,7.38840292,1629.9,1629.8,1.573]
[1693620058682,6.7470509,1629.9,1629.8,1.573]
[1693620066697,7.38918187,1629.9,1629.8,1.573]
[1693620072072,6.7470509,1629.9,1629.8,1.573]
[1693620072583,8.02975494,1629.9,1629.8,1.573]
[1693620079709,9.19974121,1629.9,1629.8,1.573]
[1693620079913,8.03047037,1629.9,1629.8,1.573]
[1693620084612,9.19974004,1629.9,1629.8,1.573]
[1693620084780,8.03052444,1629.9,1629.8,1.573]
[1693620085726,9.19974026,1629.9,1629.8,1.573]
[1693620094123,3.12020391,1629.9,1629.8,1.573]
[1693620094416,8.23858096,1629.9,1629.8,1.573]
[1693620102439,7.07011692,1629.9,1629.8,1.573]
[1693620105649,8.23849655,1629.9,1629.8,1.573]
[1693620106046,7.07031792,1629.9,1629.8,1.573]
[1693620106216,7.07031456,1629.9,1629.8,1.573]
[1693620106417,8.238498,1629.9,1629.8,1.573]
[1693620106641,8.23849619,1629.9,1629.8,1.573]
[1693620107022,7.0702877,1629.9,1629.8,1.573]
[1693620107849,2.15733964,1629.9,1629.8,7.65485404]
[1693620108049,1.64238064,1629.9,1629.8,7.65485404]
[1693620108650,2.12861451,1629.9,1629.8,7.65485404]
[1693620108818,1.64238064,1629.9,1629.8,7.65485404]
[1693620109620,1.63741229,1629.9,1629.8,7.65485404]
[1693620110267,0.64244062,1630.0,1629.8,7.65485404]
[1693620110471,2.6011303,1630.1,1630.0,1.573]
[1693620110472,3.24357092,1630.1,1630.0,1.573]
[1693620110673,2.27985291,1630.1,1630.0,4.573]
[1693620110966,5.43132671,1630.1,1630.0,4.573]
[1693620111452,5.43611295,1630.1,1630.0,4.573]
[1693620111841,5.43611295,1630.1,1630.0,6.146]
[1693620112238,3.83742232,1630.1,1630.0,9.22785404]
[1693620112438,3.83263608,1630.1,1630.0,9.22785404]
[1693620112643,3.34564666,1630.1,1630.0,9.22785404]
[1693620113460,3.83722545,1630.1,1630.0,9.22785404]
[1693620113658,3.35023792,1630.1,1630.0,9.22785404]
[1693620114492,3.34564666,1630.1,1630.0,9.22785404]
[1693620115086,1.63741229,1630.1,1630.0,9.22785404]
[1693620121506,1.63741229,1630.1,1630.0,9.7158583]
[1693620124705,4.73741229,1630.1,1630.0,9.7158583]
[1693620131921,4.73741229,1630.1,1630.0,8.1428583]
[1693620132221,6.29042195,1630.1,1630.0,8.1428583]
[1693620132397,6.93286257,1630.1,1630.0,8.1428583]
[1693620141727,8.53156226,1630.1,1630.0,8.1428583]
[1693620143722,6.93286257,1630.1,1630.0,8.1428583]
[1693620144023,8.53156119,1630.1,1630.0,8.1428583]
[1693620148318,6.93286257,1630.1,1630.0,8.1428583]
[1693620148741,8.53153284,1630.1,1630.0,8.1428583]
[1693620151642,9.49525085,1630.1,1630.0,8.1428583]
[1693620152251,8.85281023,1630.1,1630.0,8.1428583]
[1693620152556,9.49505431,1630.1,1630.0,8.1428583]
[1693620152858,8.85281023,1630.1,1630.0,8.1428583]
[1693620153614,10.1370262,1630.1,1630.0,8.1428583]
[1693620158367,10.1370262,1630.1,1630.0,7.8928583]
[1693620170580,8.85281023,1630.1,1630.0,7.8928583]
[1693620171284,10.1370262,1630.1,1630.0,7.8928583]
[1693620171784,8.85281023,1630.1,1630.0,7.8928583]
[1693620189109,7.8890311,1630.1,1630.0,7.8928583]
[1693620189293,8.85294173,1630.1,1630.0,7.8928583]
[1693620192816,9.49563892,1630.1,1630.0,7.8928583]
[1693620193014,8.53172829,1630.1,1630.0,7.8928583]
[1693620193315,0.64273627,1630.2,1630.0,9.9458583]
[1693620193519,3.24405919,1630.3,1630.1,3.56185404]
[1693620193812,3.24405919,1630.3,1630.2,3.0]
[1693620194012,4.84250268,1630.3,1630.2,6.08185404]
[1693620194216,5.28068629,1630.3,1630.2,6.08185404]
[1693620194411,4.31677566,1630.3,1630.2,6.08185404]
[1693620194710,3.87859205,1630.3,1630.2,6.08185404]
[1693620194912,4.31677965,1630.3,1630.2,6.08185404]
[1693620195883,4.31677965,1630.3,1630.2,7.65485404]
[1693620200421,2.71833616,1630.3,1630.2,7.65485404]
[1693620202819,2.07559989,1630.3,1630.2,7.65485404]
[1693620206696,2.07559989,1630.3,1630.2,8.14718891]
[1693620207525,2.07984916,1630.3,1630.2,8.14718891]
[1693620209202,2.07984916,1630.3,1630.2,8.18980691]
[1693620210096,1.64166156,1630.3,1630.2,8.18980691]
[1693620210294,2.12941174,1630.3,1630.2,8.18980691]
[1693620215752,0.49199945,1630.3,1630.2,58.71980691]
[1693620215949,0.00424927,1630.3,1630.2,59.19980691]
[1693620216547,2.27913794,1630.6,1630.2,59.19980691]
[1693620216755,2.27913794,1630.6,1630.5,1.573]
[1693620216916,3.3446092,1630.6,1630.5,1.573]
[1693620220357,4.94282465,1630.6,1630.5,1.573]
[1693620220839,5.43068161,1630.6,1630.5,1.573]
[1693620221655,5.43479004,1630.6,1630.5,1.573]
[1693620226161,6.39737852,1630.6,1630.5,1.573]
[1693620227481,5.75556288,1630.6,1630.5,1.573]
[1693620227775,6.39721378,1630.6,1630.5,1.573]
[1693620229973,6.39721378,1630.6,1630.5,1.76073814]
[1693620230955,6.39721378,1630.6,1630.5,2.2579862]
[1693620232379,5.75556288,1630.6,1630.5,2.2579862]
[1693620234253,6.39730824,1630.6,1630.5,2.2579862]
[1693620235967,5.75556288,1630.6,1630.5,2.2579862]
[1693620243015,6.39761028,1630.6,1630.5,2.2579862]
[1693620244303,9.49761028,1630.6,1630.5,2.2579862]
[1693620244801,8.53513393,1630.6,1630.5,2.2579862]
[1693620245711,5.43513393,1630.6,1630.5,2.2579862]
[1693620249278,3.83690862,1630.6,1630.5,2.2579862]
[1693620249484,3.83280019,1630.6,1630.5,2.2579862]
[1693620249682,3.34494323,1630.6,1630.5,2.2579862]
[1693620249884,4.94311574,1630.6,1630.5,2.2579862]
[1693620250284,3.83285273,1630.6,1630.5,2.2579862]
[1693620250686,3.34494323,1630.6,1630.5,2.2579862]
[1693620251410,4.94311768,1630.6,1630.5,2.2579862]
[1693620251809,5.43102718,1630.6,1630.5,2.2579862]
[1693620252525,5.43513561,1630.6,1630.5,2.2579862]
[1693620255110,5.43513561,1630.6,1630.5,2.07024806]
[1693620255324,6.39761196,1630.6,1630.5,0.49724806]
[1693620255517,6.39761196,1630.6,1630.4,6.924]
[1693620255820,1.70753094,1630.5,1630.4,10.00585404]
[1693620259315,3.30574037,1630.5,1630.4,10.49154447]
[1693620261524,4.26821672,1630.5,1630.4,10.49154447]
[1693620262923,3.30574037,1630.5,1630.4,10.49154447]
[1693620263425,4.26821672,1630.5,1630.4,10.49154447]
[1693620267926,4.26821672,1630.5,1630.4,10.67301567]
[1693620276838,3.30574037,1630.5,1630.4,10.67301567]
[1693620279055,4.26821672,1630.5,1630.4,10.67301567]
[1693620279361,3.30574037,1630.5,1630.4,10.67301567]
[1693620279764,4.26821672,1630.5,1630.4,10.67301567]
[1693620280167,3.30574037,1630.5,1630.4,10.67301567]
[1693620280331,4.26821672,1630.5,1630.4,10.67301567]
[1693620287671,3.30574037,1630.5,1630.4,10.67301567]
[1693620294888,3.3056922,1630.5,1630.4,10.67301567]
[1693620298894,3.30710534,1630.5,1630.4,10.67301567]
[1693620312903,1.70893039,1630.5,1630.4,10.67301567]
[1693620314217,5.05011336,1630.6,1630.4,10.67301567]
[1693620314409,5.05011336,1630.6,1630.5,1.573]
[1693620314611,5.90964719,1630.6,1630.5,1.573]
[1693620315398,6.39979014,1630.6,1630.5,1.573]
[1693620318579,6.40389857,1630.6,1630.5,1.573]
[1693620324919,5.43867793,1630.6,1630.5,1.573]
[1693620327685,6.40389857,1630.6,1630.5,1.573]
[1693620328035,5.43867793,1630.6,1630.5,1.573]
[1693620328186,5.43867793,1630.6,1630.5,2.48921108]
[1693620329707,3.80126564,1630.6,1630.5,5.57106512]
[1693620329883,3.80126564,1630.6,1630.5,8.57106512]
[1693620330089,1.71300239,1630.6,1630.5,8.57106512]
[1693620330309,0.64758886,1630.6,1630.5,8.57106512]
[1693620330511,0.64348043,1630.6,1630.5,8.57106512]
[1693620330714,2.6741146,1630.7,1630.5,8.57106512]
[1693620330925,1.60870107,1630.7,1630.6,4.573]
[1693620331122,4.27211987,1630.7,1630.6,4.573]
[1693620331490,4.27615749,1630.7,1630.6,4.573]
[1693620333716,3.31093685,1630.7,1630.6,4.573]
[1693620335155,3.80571819,1630.7,1630.6,4.573]
[1693620337253,3.80571819,1630.7,1630.6,7.65485404]
[1693620339840,2.20766691,1630.7,1630.6,7.65485404]
[1693620341742,4.28699272,1630.8,1630.6,7.65485404]
[1693620342241,4.28699272,1630.8,1630.6,8.14201669]
[1693620354584,2.38189272,1630.8,1630.7,5.13485404]
[1693620354757,0.101,1630.8,1630.7,8.13485404]
[1693620364192,2.38189272,1630.8,1630.5,1.573]
[1693620364398,1.70885813,1630.7,1630.5,4.65485404]
[1693620364603,1.71363945,1630.7,1630.5,4.65485404]
[1693620365406,0.51351295,1630.6,1630.5,4.65485404]
[1693620365610,0.64348043,1630.7,1630.5,4.65485404]
[1693620365778,1.70887096,1630.7,1630.6,3.0]
[1693620368797,3.30695508,1630.7,1630.6,3.0]
[1693620369171,3.8205144,1630.7,1630.6,3.0]
[1693620369581,3.82529572,1630.7,1630.6,3.0]
[1693620372411,3.8241092,1630.7,1630.6,3.0]
[1693620373889,3.8241092,1630.7,1630.5,4.573]
[1693620374216,1.16061052,1630.7,1630.5,4.573]
[1693620374405,1.11061052,1630.7,1630.5,4.573]
[1693620374609,1.63741229,1630.6,1630.5,4.573]
[1693620374973,2.14596161,1630.6,1630.5,4.573]
[1693620375633,2.1507351,1630.6,1630.5,4.573]